bitfinex-derivatives/quotes_SOLF0:USTF0_20250127
["timestamp","ask_amount","ask_price","bid_price","bid_amount"]
[1737992627851,4.2516,235.19,235.06,1.8715]
[1737992628149,0.03001413,235.15,235.1,0.02912236]
[1737992628349,21.35608718,235.22,235.06,1.8715]
[1737992628648,0.02728622,235.15,235.1,0.03192102]
[1737992629046,4.2529,235.12,235.1,0.03192102]
[1737992629247,0.02728622,235.15,235.1,0.03192102]
[1737992629552,4.2531,235.11,235.1,0.03192102]
[1737992630448,4.2542,235.05,234.94,1.4877]
[1737992630640,3.0503,235.14,234.95,0.76279594]
[1737992630842,3.0503,235.14,235.01,4.2548]
[1737992631054,4.254,235.06,234.94,3.1825]
[1737992631251,4.254,235.06,234.95,0.76278136]
[1737992631550,0.02848702,235.03,234.98,0.03171104]
[1737992631749,3.0503,235.14,234.95,0.76278136]
[1737992631950,0.02687999,235.03,235.01,4.2548]
[1737992632146,4.2531,235.11,234.96,1.4822]
[1737992632451,0.0291991,235.04,235.03,4.2545]
[1737992632651,4.2529,235.13,235.03,4.2545]
[1737992632846,0.02981428,235.06,235.03,4.2545]
[1737992633043,1.7944,235.16,235.03,4.2545]
[1737992633343,1.7944,235.16,234.96,1.4822]
[1737992633344,0.02990465,235.07,235.02,0.0283608]
[1737992633543,1.5366,235.15,234.96,1.4822]
[1737992633849,4.254,235.06,234.96,1.4822]
[1737992634150,4.254,235.06,235.03,0.030554]
[1737992634355,4.2542,235.05,235.03,0.030554]
[1737992634545,0.02948128,235.07,235.03,0.030554]
[1737992634950,4.2553,234.99,234.94,4.2561]
[1737992635142,21.35608718,235.12,234.87,4.7721]
[1737992635342,21.35608718,235.07,234.88,0.76300213]
[1737992635750,21.35608718,235.07,234.89,0.76300213]
[1737992635951,4.2558,234.96,234.9,4.2567]
[1737992636454,4.2558,234.96,234.91,0.02906876]
[1737992636853,4.2556,234.98,234.91,4.28566876]
[1737992637053,0.03218126,235.0,234.91,0.02906876]
[1737992637753,21.35608718,234.97,234.82,0.76306205]
[1737992637952,21.35608718,234.97,234.8,4.7721]
[1737992638148,21.35608718,234.97,234.81,0.76333117]
[1737992638656,4.2567,234.91,234.81,0.76333117]
[1737992638953,0.02980952,234.88,234.84,0.02944597]
[1737992639154,0.02980952,234.88,234.87,4.2574]
[1737992639655,12.76,234.87,234.59,400.44022349]
[1737992639856,21.35608718,234.77,234.6,0.76380951]
[1737992640257,4.2601,234.73,234.64,4.2615]
[1737992640451,21.35608718,234.77,234.59,400.44022349]
[1737992640653,21.35608718,234.82,234.66,0.03020565]
[1737992640850,21.35608718,234.82,234.6,0.7638825]
[1737992641050,21.38775738,234.76,234.72,0.02882342]
[1737992641259,4.26,234.73,234.63,4.2617]
[1737992641560,21.35608718,234.81,234.64,0.7638825]
[1737992641854,1.8157,234.86,234.65,0.7638825]
[1737992641855,21.35608718,234.85,234.65,0.7638825]
[1737992642158,21.35608718,234.95,234.72,21.35608718]
[1737992642355,21.35608718,234.95,234.74,4.2597]
[1737992642356,4.2569,234.9,234.74,4.2597]
[1737992642659,1.7056,234.99,234.77,21.35608718]
[1737992642954,21.35608718,234.95,234.75,4.2596]
[1737992643152,21.35608718,234.95,234.73,6.5086]
[1737992643554,0.02752077,234.86,234.82,0.02946069]
[1737992643957,0.02934674,234.86,234.82,0.02946069]
[1737992644358,0.02934674,234.86,234.7,21.35608718]
[1737992644558,0.02934674,234.86,234.71,0.76361497]
[1737992644758,1.4354,234.93,234.71,0.76361497]
[1737992645458,4.2582,234.83,234.8,0.02324133]
[1737992645959,0.03030637,234.84,234.64,21.35608718]
[1737992646261,21.35608718,234.82,234.59,21.35608718]
[1737992646457,4.26,234.73,234.64,4.2615]
[1737992646655,4.26,234.73,234.59,21.35608718]
[1737992646858,4.26,234.73,234.6,0.76392971]
[1737992647263,0.03223108,234.69,234.52,21.35608718]
[1737992647466,21.35608718,234.77,234.53,0.76416147]
[1737992647660,0.02923157,234.63,234.52,21.35608718]
[1737992647867,4.29103157,234.63,234.52,21.35608718]
[1737992648263,0.02923157,234.63,234.52,21.35608718]
[1737992648667,0.02923157,234.63,234.53,4.2635]
[1737992648869,0.02923157,234.63,234.52,21.35608718]
[1737992649070,0.02923157,234.63,234.53,0.76423832]
[1737992649371,0.02923157,234.63,234.47,4.7491]
[1737992649672,21.35608718,234.77,234.26,314.35608718]
[1737992649673,21.35608718,234.65,234.3,4.7064]
[1737992649869,4.2635,234.54,234.44,4.2651]
[1737992650369,0.02839461,234.51,234.44,4.2652]
[1737992650673,21.35608718,234.6,234.44,4.2652]
[1737992650866,0.03144562,234.5,234.44,4.2652]
[1737992651063,0.03144562,234.5,234.33,3.5]
[1737992651262,0.03144562,234.5,234.4,0.76461181]
[1737992651663,0.03144562,234.5,234.45,4.2649]
[1737992652173,0.03144562,234.5,234.41,1.4673]
[1737992652373,0.03144562,234.5,234.48,4.2644]
[1737992652577,0.03144562,234.5,234.43,1.4259]
[1737992652872,0.03144562,234.5,234.43,5.6912]
[1737992653193,0.03144562,234.5,234.41,1.4673]
[1737992653373,0.03144562,234.5,234.35,21.35608718]
[1737992653569,21.35608718,234.6,234.36,0.76468844]
[1737992653775,4.2646,234.48,234.38,4.2663]
[1737992654072,21.35608718,234.6,234.35,21.35608718]
[1737992654369,0.03047863,234.45,234.34,4.267]
[1737992654567,3.2696,234.55,234.31,22.80408718]
[1737992654768,0.03171949,234.42,234.31,22.80408718]
[1737992656272,0.03171949,234.42,234.35,21.35608718]
[1737992656474,0.03171949,234.42,234.39,21.35608718]
[1737992656675,1.949e-05,234.42,234.4,4.2658]
[1737992656870,4.8094,234.55,234.39,21.35608718]
[1737992657365,4.2636,234.53,234.43,4.2653]
[1737992657572,4.8094,234.55,234.39,21.35608718]
[1737992658073,0.0315628,234.49,234.45,0.0296401]
[1737992658771,4.2647,234.47,234.45,0.0296401]
[1737992659365,4.2645,234.48,234.45,0.0296401]
[1737992659675,0.0315628,234.49,234.45,0.0296401]
[1737992660071,4.2647,234.47,234.45,0.0296401]
[1737992660673,0.0315628,234.49,234.35,21.35608718]
[1737992661174,4.2641,234.51,234.41,4.2658]
[1737992661373,4.2641,234.51,234.35,21.35608718]
[1737992661567,4.8094,234.55,234.35,21.35608718]
[1737992661874,4.8094,234.55,234.39,21.35608718]
[1737992661875,0.02804524,234.47,234.39,21.35608718]
[1737992662764,1.5483,234.63,234.43,21.35608718]
[1737992662973,1.5483,234.63,234.47,21.35608718]
[1737992663167,1.7781,234.65,234.47,21.35608718]
[1737992663168,4.2621,234.62,234.52,4.2637]
[1737992663373,1.7781,234.65,234.47,21.35608718]
[1737992663767,1.7781,234.65,234.51,21.35608718]
[1737992663971,0.02827918,234.58,234.54,0.0305968]
[1737992664477,3.55399,234.67,234.55,21.35608718]
[1737992664668,3.55399,234.67,234.56,3.1026]
[1737992664872,3.55399,234.67,234.64,4.2615]
[1737992665068,3.55399,234.67,234.59,21.35608718]
[1737992665377,1.20012033,234.67,234.6,3.5]
[1737992665870,1.591e-05,234.66,234.63,21.35608718]
[1737992666070,4.8535,234.86,234.64,0.76383883]
[1737992666271,4.2593,234.77,234.7,4.2604]
[1737992666475,4.8535,234.86,234.63,21.35608718]
[1737992666877,4.2594,234.77,234.68,4.2608]
[1737992667072,4.2594,234.77,234.63,21.35608718]
[1737992667271,0.02960917,234.77,234.72,0.02832289]
[1737992667476,0.02960917,234.77,234.75,4.2595]
[1737992667777,0.03108093,234.78,234.74,0.02703449]
[1737992668475,4.2595,234.76,234.74,0.02703449]
[1737992669578,4.2606,234.7,234.58,3.5]
[1737992669883,21.35608718,234.81,234.61,4.262]
[1737992670270,4.2606,234.7,234.58,3.5]
[1737992670475,21.35608718,234.77,234.56,27.95868718]
[1737992670775,0.02932831,234.66,234.62,0.03257166]
[1737992671077,21.35608718,234.81,234.56,27.95868718]
[1737992671378,0.03144344,234.66,234.62,0.03214741]
[1737992671579,21.35608718,234.81,234.62,0.03214741]
[1737992671779,0.02882967,234.66,234.57,1.3966]
[1737992671976,21.35608718,234.71,234.51,21.35608718]
[1737992672278,0.0290937,234.64,234.59,0.02732147]
[1737992673184,4.262,234.62,234.59,0.02732147]
[1737992674085,4.2622,234.61,234.59,0.02732147]
[1737992674276,21.35608718,234.6,234.14,493.5413]
[1737992674482,21.35608718,234.6,234.33,3.3204]
[1737992674681,1.4015,234.59,234.33,3.3204]
[1737992674882,4.2641,234.51,234.33,6.8204]
[1737992675376,1.4864,234.58,234.34,21.35608718]
[1737992675580,0.03214405,234.47,234.43,0.03055833]
[1737992676583,0.03214405,234.47,234.43,4.29595833]
[1737992676883,1.4015,234.59,234.45,21.35608718]
[1737992677181,1.4975,234.64,234.49,21.35608718]
[1737992677382,1.4975,234.64,234.55,4.2631]
[1737992677595,1.4975,234.64,234.49,21.35608718]
[1737992677978,0.03054353,234.59,234.54,0.02913342]
[1737992678985,0.03054353,234.59,234.54,4.29243342]
[1737992679286,0.03054353,234.59,234.54,0.02913342]
[1737992680080,0.03054353,234.59,234.54,4.29253342]
[1737992680279,0.03054353,234.59,234.54,0.02913342]
[1737992681886,0.03054353,234.59,234.54,4.29243342]
[1737992682185,0.03054353,234.59,234.54,0.02913342]
[1737992682587,4.2631,234.56,234.54,0.02913342]
[1737992682788,0.03054353,234.59,234.54,0.02913342]
[1737992683485,4.2627,234.58,234.54,0.02913342]
[1737992683684,0.03054353,234.59,234.54,0.02913342]
[1737992684383,4.2627,234.58,234.54,0.02913342]
[1737992684583,4.2627,234.58,234.53,4.25058746]
[1737992684986,0.03054353,234.59,234.41,3.2282]
[1737992685288,22.85358718,234.64,234.42,0.76451074]
[1737992685487,4.2631,234.56,234.5,4.2641]
[1737992685690,0.02912169,234.55,234.51,0.02881884]
[1737992685889,0.02912169,234.55,234.42,0.76452603]
[1737992686085,4.2654,234.43,234.42,2.603e-05]
[1737992686282,21.35608718,234.54,234.46,0.03057218]
[1737992686489,0.0312482,234.45,234.3,21.35608718]
[1737992686686,21.35608718,234.54,234.31,1.4214]
[1737992686884,0.03212352,234.4,234.37,4.2663]
[1737992687190,21.35608718,234.54,234.31,1.4214]
[1737992687395,0.02819438,234.41,234.36,0.03171162]
[1737992687687,4.2651,234.45,234.37,4.2665]
[1737992687890,0.03152255,234.41,234.37,4.2665]
[1737992688184,21.35608718,234.54,234.31,1.4214]
[1737992688385,21.35608718,234.54,234.41,4.2657]
[1737992688583,0.02882291,234.45,234.32,3.5]
[1737992688792,24.59368718,234.62,234.47,4.2646]
[1737992688992,24.59368718,234.62,234.36,21.35608718]
[1737992689193,24.59368718,234.62,234.37,0.75870106]
[1737992689391,4.2631,234.56,234.5,4.2641]
[1737992689692,24.59368718,234.62,234.41,21.35608718]
[1737992689892,0.02727145,234.55,234.51,0.02833767]
[1737992690190,0.02727145,234.55,234.51,4.29223767]
[1737992690392,0.02727145,234.55,234.51,0.02833767]
[1737992690695,0.02727145,234.55,234.53,4.2635]
[1737992690994,3.0939,234.69,234.51,0.02833767]
[1737992691197,3.0939,234.69,234.46,0.75851741]
[1737992691390,4.2615,234.65,234.58,4.2626]
[1737992691990,4.2615,234.65,234.45,21.35608718]
[1737992692186,0.03067016,234.64,234.59,0.02775262]
[1737992692389,21.35608718,234.66,234.43,4.9976]
[1737992692390,21.35608718,234.66,234.47,0.75844706]
[1737992692691,4.2623,234.61,234.52,4.2637]
[1737992692887,0.02728674,234.59,234.54,0.02836743]
[1737992693895,0.02728674,234.59,234.54,4.29156743]
[1737992694201,0.02728674,234.59,234.54,0.02836743]
[1737992695095,0.02728674,234.59,234.55,4.2632]
[1737992695288,0.02728674,234.59,234.54,0.02836743]
[1737992695495,1.4201,234.74,234.54,0.02836743]
[1737992695795,4.2607,234.7,234.65,4.2614]
[1737992695999,4.2607,234.7,234.54,1.5115]
[1737992696187,21.35608718,234.71,234.48,21.35608718]
[1737992696395,21.35608718,234.71,234.5,3.3131]
[1737992696587,21.35608718,234.71,234.51,0.75835716]
[1737992696791,4.2622,234.61,234.58,0.03130966]
[1737992696994,0.02912856,234.63,234.58,0.03130966]
[1737992697292,4.2625,234.59,234.58,0.03130966]
[1737992698694,46.87608718,234.59,234.23,21.35608718]
[1737992698897,21.35608718,234.57,234.33,21.35608718]
[1737992699095,21.35608718,234.57,234.35,4.2668]
[1737992699294,4.265,234.46,234.33,21.35608718]
[1737992699595,21.35608718,234.57,234.34,4.267]
[1737992699800,4.29551373,234.42,234.37,0.03250799]
[1737992700001,21.35608718,234.52,234.28,21.35608718]
[1737992700197,0.03083058,234.42,234.37,0.03127211]
[1737992700404,21.35608718,234.41,234.14,9.00431951]
[1737992700705,21.35608718,234.36,234.19,4.2697]
[1737992700916,21.35608718,234.36,234.15,3.3183]
[1737992701204,21.35608718,234.41,234.26,4.2685]
[1737992701497,0.02915122,234.36,234.31,0.03041573]
[1737992701900,1.5416,234.45,234.33,4.2671]
[1737992702103,0.02778522,234.36,234.31,0.0279083]
[1737992702303,1.5416,234.45,234.29,4.7058]
[1737992702503,0.03165005,234.36,234.31,0.03269171]
[1737992705900,0.03165005,234.36,234.34,4.267]
[1737992706104,5.005e-05,234.36,234.34,4.267]
[1737992706406,1.4615,234.5,234.31,0.03269171]
[1737992706606,1.4615,234.5,234.41,4.2657]
[1737992707006,4.2643,234.49,234.41,4.2657]
[1737992707306,1.4615,234.5,234.29,21.35608718]
[1737992707504,1.5448,234.58,234.39,21.35608718]
[1737992707709,1.4615,234.64,234.44,21.35608718]
[1737992707909,4.2615,234.65,234.55,4.2632]
[1737992708207,1.8327,234.69,234.52,0.03105551]
[1737992708208,0.03127267,234.56,234.52,0.03105551]
[1737992708403,4.2611,234.67,234.58,4.2626]
[1737992708705,1.4129,234.68,234.53,21.35608718]
[1737992708904,1.4129,234.68,234.54,1.3994]
[1737992709105,1.4129,234.68,234.61,4.262]
[1737992709606,0.03043214,234.67,234.63,4.2617]
[1737992709999,0.03043214,234.67,234.62,0.0277606]
[1737992710400,21.35608718,234.65,234.48,0.75839142]
[1737992710600,21.35608718,234.65,234.41,1.6693]
[1737992710807,21.35608718,234.6,234.42,0.75866565]
[1737992711003,3.1801,234.59,234.42,0.75866565]
[1737992711207,3.1801,234.59,234.38,56.82129709]
[1737992711411,21.35608718,234.55,234.39,0.75881684]
[1737992711611,21.35608718,234.55,234.34,21.35608718]
[1737992711612,0.02726974,234.51,234.46,0.03198178]
[1737992714207,0.02726974,234.51,234.48,4.2644]
[1737992714711,0.02726974,234.51,234.46,0.03198178]
[1737992715414,4.29126974,234.51,234.46,0.03198178]
[1737992715611,0.02726974,234.51,234.46,0.03198178]
[1737992716008,4.29126974,234.51,234.46,0.03198178]
[1737992716412,0.02726974,234.51,234.46,0.03198178]
[1737992716815,4.2645,234.48,234.46,0.03198178]
[1737992717314,4.2655,234.43,234.36,4.2665]
[1737992717516,21.35608718,234.55,234.34,21.35608718]
[1737992717914,21.35608718,234.55,234.37,4.2664]
[1737992718416,4.2652,234.44,234.37,4.2664]
[1737992718742,21.35608718,234.55,234.38,0.02928165]
[1737992718914,0.02951123,234.43,234.35,4.2668]
[1737992719120,21.35608718,234.55,234.44,0.02738447]
[1737992719316,21.35608718,234.55,234.37,4.2664]
[1737992719518,0.0296731,234.52,234.47,0.02782717]
[1737992719716,21.35608718,234.55,234.34,21.35608718]
[1737992720017,0.02745786,234.52,234.47,0.02834661]
[1737992720217,21.35608718,234.55,234.34,21.35608718]
[1737992720418,0.03049743,234.52,234.47,0.03070502]
[1737992720619,21.35608718,234.55,234.32,0.75902799]
[1737992720815,0.02930252,234.52,234.47,7.56e-05]
[1737992721023,21.35608718,234.55,234.31,3.0607]
[1737992721219,21.35608718,234.55,234.32,0.75903222]
[1737992721418,4.2646,234.48,234.32,0.75903222]
[1737992721613,21.35608718,234.55,234.32,0.75903222]
[1737992721827,1.3968,234.58,234.38,21.35608718]
[1737992722015,4.2636,234.54,234.47,4.2646]
[1737992722218,0.02963071,234.5,234.38,21.35608718]
[1737992722522,0.02963071,234.5,234.48,0.02486816]
[1737992722821,0.02963071,234.5,234.47,0.02486816]
[1737992723020,0.02963071,234.5,234.39,0.7587925]
[1737992723223,4.29383071,234.5,234.46,0.02486816]
[1737992723424,0.02963071,234.5,234.46,0.02486816]
[1737992724248,0.02963071,234.5,234.49,4.2643]
[1737992724424,0.02963071,234.5,234.46,0.02486816]
[1737992724823,0.02963071,234.5,234.48,4.2644]
[1737992725024,0.02963071,234.5,234.46,0.02486816]
[1737992726332,2.9013,234.65,234.49,21.35608718]
[1737992726927,4.262,234.62,234.56,4.2629]
[1737992727531,0.03036331,234.61,234.57,0.02995219]
[1737992727734,6.331e-05,234.61,234.58,21.35608718]
[1737992728028,4.2603,234.71,234.66,4.2612]
[1737992728235,5.74753036,234.79,234.62,21.35608718]
[1737992728530,5.74753036,234.79,234.66,21.35608718]
[1737992729028,0.03110877,234.75,234.7,0.03212321]
[1737992729428,0.03110877,234.75,234.72,4.2601]
[1737992729634,0.03110877,234.75,234.7,0.03212321]
[1737992730035,4.26,234.73,234.7,0.03212321]
[1737992730334,0.03110877,234.75,234.7,0.03212321]
[1737992731636,0.03110877,234.75,234.59,2.9306]
[1737992731833,21.35608718,234.78,234.59,2.9306]
[1737992732234,4.261,234.68,234.6,4.2622]
[1737992732429,21.35608718,234.78,234.6,4.2622]
[1737992732625,0.03007951,234.71,234.67,0.03275964]
[1737992732931,4.26,234.73,234.67,0.03275964]
[1737992733129,0.02950118,234.71,234.67,0.03275964]
[1737992733536,4.2608,234.69,234.67,0.03275964]
[1737992734336,21.35608718,234.7,234.47,3.5]
[1737992734533,1.7255,234.68,234.47,2.8489]
[1737992734729,4.2615,234.65,234.57,4.2628]
[1737992735033,1.7255,234.68,234.54,21.35608718]
[1737992735228,1.7255,234.68,234.55,0.7582757]
[1737992735434,0.03094862,234.63,234.61,4.2621]
[1737992735636,0.03094862,234.63,234.54,21.35608718]
[1737992735835,0.03094862,234.63,234.55,0.7582445]
[1737992736432,0.03094862,234.63,234.6,4.2623]
[1737992736634,0.03094862,234.63,234.54,21.35608718]
[1737992736932,0.03094862,234.63,234.55,0.7582597]
[1737992737331,0.03094862,234.63,234.5,21.35608718]
[1737992737640,4.2623,234.6,234.53,4.2634]
[1737992737831,0.03094862,234.63,234.5,21.35608718]
[1737992738033,1.7255,234.68,234.5,21.35608718]
[1737992738236,1.7255,234.68,234.6,4.2621]
[1737992738632,4.2612,234.67,234.6,4.2621]
[1737992738836,0.03080055,234.66,234.6,4.2621]
[1737992739036,0.03080055,234.66,234.58,21.35608718]
[1737992739340,21.35608718,234.74,234.52,21.35608718]
[1737992739536,0.03202387,234.64,234.56,4.2629]
[1737992739739,0.03202387,234.64,234.52,21.35608718]
[1737992739936,0.03202387,234.64,234.53,0.75827695]
[1737992740735,0.03202387,234.64,234.63,4.2618]
[1737992743045,0.03202387,234.64,234.52,21.35608718]
[1737992743340,0.03202387,234.64,234.48,8.5289]
[1737992743341,0.03202387,234.64,234.53,0.75822395]
[1737992743539,0.03202387,234.64,234.49,0.75822395]
[1737992743741,0.03202387,234.64,234.47,2.8489]
[1737992744040,0.02746385,234.58,234.48,0.75850017]
[1737992744741,0.02746385,234.58,234.47,2.8489]
[1737992745133,0.02746385,234.58,234.48,0.75852804]
[1737992745337,0.02746385,234.58,234.47,2.8489]
[1737992745533,0.02746385,234.58,234.48,0.75852634]
[1737992745737,0.02746385,234.58,234.47,2.8489]
[1737992745943,0.02746385,234.58,234.4,21.35608718]
[1737992746137,0.02746385,234.58,234.41,3.1909]
[1737992746337,1.5065,234.62,234.47,4.2647]
[1737992746535,0.02927203,234.52,234.47,4.2647]
[1737992746739,1.5065,234.62,234.47,4.2647]
[1737992746943,0.02860739,234.52,234.51,4.2639]
[1737992747152,1.5065,234.62,234.45,21.35608718]
[1737992747340,0.02779647,234.54,234.45,21.35608718]
[1737992747638,0.02779647,234.54,234.49,21.35608718]
[1737992748143,1.5089,234.66,234.49,21.35608718]
[1737992748641,1.5089,234.66,234.57,4.2628]
[1737992749046,1.4946,234.7,234.53,21.35608718]
[1737992749239,1.7249,234.71,234.54,3.83106138]
[1737992749441,0.02790316,234.64,234.59,0.02894066]
[1737992749639,0.02790316,234.64,234.63,4.2618]
[1737992750150,3.16e-06,234.64,234.63,4.2618]
[1737992752340,1.7698,234.79,234.72,4.26]
[1737992752539,21.35608718,234.86,234.66,21.35608718]
[1737992752841,4.2587,234.81,234.75,4.2594]
[1737992753145,4.2587,234.81,234.67,3.1787]
[1737992753345,4.2587,234.81,234.68,1.4072]
[1737992753545,4.2592,234.77,234.76,0.03085446]
[1737992754146,0.03107268,234.8,234.76,0.03085446]
[1737992754346,4.259,234.79,234.76,0.03085446]
[1737992754546,0.03107268,234.8,234.76,0.03085446]
[1737992755143,0.03107268,234.8,234.7,21.35608718]
[1737992755742,0.03107268,234.8,234.68,1.4072]
[1737992756347,0.03107268,234.8,234.72,0.02751296]
[1737992756650,4.26,234.73,234.72,0.02751296]
[1737992757947,4.28983459,234.75,234.72,0.02751296]
[1737992758143,0.03013459,234.75,234.72,0.02751296]
[1737992760243,0.03013459,234.75,234.53,3.2274]
[1737992760450,21.35608718,234.78,234.54,5.67658908]
[1737992760754,21.35608718,234.74,234.55,0.75818908]
[1737992761246,4.2615,234.65,234.59,4.2624]
[1737992761452,0.02917492,234.67,234.54,1.4184]
[1737992761653,24.63158718,234.83,234.55,0.75821804]
[1737992761955,2.551e-05,234.63,234.62,25.61808718]
[1737992762257,24.63158718,234.83,234.62,21.35608718]
[1737992762548,3.2755,234.83,234.66,21.35608718]
[1737992762746,3.2755,234.83,234.67,3.291]
[1737992762954,4.2587,234.81,234.74,4.2597]
[1737992763143,0.03233392,234.77,234.73,0.03253695]
[1737992764359,0.03233392,234.77,234.76,4.2594]
[1737992764549,3.1956,234.9,234.73,0.03253695]
[1737992764749,1.4046,234.93,234.75,21.35608718]
[1737992764950,1.69,234.98,234.86,21.35608718]
[1737992765351,1.69,234.98,234.91,4.2566]
[1737992765654,1.5056,234.99,234.82,3.5]
[1737992765851,4.2559,234.96,234.92,0.03234244]
[1737992766054,0.02769562,234.97,234.92,0.03234244]
[1737992766456,0.02769562,234.97,234.94,4.256]
[1737992766657,0.02769562,234.97,234.92,0.03234244]
[1737992766956,0.02769562,234.97,234.93,4.2562]
[1737992767152,0.02769562,234.97,234.92,0.03234244]
[1737992767548,4.28339562,234.97,234.92,0.03234244]
[1737992767747,0.02769562,234.97,234.92,0.03234244]
[1737992768155,9.562e-05,234.97,234.95,4.2559]
[1737992768352,9.562e-05,234.97,234.95,25.61198718]
[1737992770560,4.6089,235.16,235.03,4.2544]
[1737992770959,4.6089,235.16,234.95,21.35608718]
[1737992771160,4.6089,235.16,234.94,1.4302]
[1737992771457,4.2538,235.07,234.94,1.4302]
[1737992771849,0.03081361,235.07,235.03,0.02903305]
[1737992772050,0.03081361,235.07,234.94,1.4302]
[1737992772251,0.03081361,235.07,235.03,0.02728838]
[1737992772460,0.03081361,235.07,234.98,21.35608718]
[1737992772653,0.03081361,235.07,235.05,4.2541]
[1737992774156,0.03081361,235.07,235.03,0.02895329]
[1737992774561,4.254,235.06,235.03,0.02895329]
[1737992774758,0.03081361,235.07,235.03,0.02895329]
[1737992775960,0.03081361,235.07,235.04,4.2542]
[1737992776158,0.03081361,235.07,235.03,0.02895329]
[1737992777364,4.2516,235.2,235.14,4.2525]
[1737992777563,3.1316,235.22,235.08,21.35608718]
[1737992778057,1.4404,235.29,235.09,1.77]
[1737992778260,3.2885,235.28,235.12,21.35608718]
[1737992778564,0.02875907,235.22,235.18,4.28087219]
[1737992778962,0.02875907,235.22,235.18,0.02917219]
[1737992779761,0.02875907,235.22,235.2,4.2514]
[1737992779963,4.8277,235.37,235.21,21.35608718]
[1737992780158,4.249,235.34,235.28,4.2498]
[1737992780460,4.249,235.34,235.25,21.35608718]
[1737992780665,4.2488,235.35,235.28,4.2499]
[1737992780864,5.74753036,235.41,235.25,21.35608718]
[1737992781064,4.9321,235.4,235.22,1.77]
[1737992781270,0.02761249,235.35,235.31,0.03047828]
[1737992783567,0.02761249,235.35,235.23,1.4364]
[1737992783568,0.02761249,235.35,235.22,1.77]
[1737992783764,0.02761249,235.35,235.17,21.35608718]
[1737992783964,4.9321,235.4,235.17,21.35608718]
[1737992784770,4.2491,235.34,235.2,4.2514]
[1737992785070,0.02916905,235.31,235.26,0.03102479]
[1737992785459,4.25,235.28,235.26,0.03102479]
[1737992785662,0.02916905,235.31,235.15,3.48]
[1737992785963,21.35608718,235.37,235.12,21.35608718]
[1737992786568,4.9321,235.4,235.17,21.35608718]
[1737992786768,4.9321,235.4,235.18,1.5152]
[1737992787072,0.03060589,235.31,235.26,0.03039868]
[1737992787264,4.2501,235.28,235.26,0.03039868]
[1737992787771,0.03060589,235.31,235.26,0.03039868]
[1737992788669,4.2499,235.29,235.26,0.03039868]
[1737992788873,0.03060589,235.31,235.26,0.03039868]
[1737992789173,4.28020589,235.31,235.26,0.03039868]
[1737992789366,0.03060589,235.31,235.26,0.03039868]
[1737992789571,0.03060589,235.31,235.28,4.2499]
[1737992790370,0.03060589,235.31,235.26,0.03039868]
[1737992790973,4.2499,235.29,235.26,0.03039868]
[1737992791172,0.03060589,235.31,235.26,0.03039868]
[1737992791667,4.2502,235.27,235.26,0.03039868]
[1737992792367,0.03060589,235.31,235.14,4.2524]
[1737992792567,13.12158095,235.32,235.13,1.763]
[1737992792763,13.12158095,235.32,235.1,4.2531]
[1737992792971,21.2563,235.39,235.07,1.5314]
[1737992792972,13.12158095,235.27,235.07,1.5314]
[1737992793170,3.1843,235.26,235.06,1.763]
[1737992793468,3.1843,235.26,235.08,13.12158095]
[1737992793669,0.03155589,235.18,235.14,0.02853761]
[1737992795773,4.28355589,235.18,235.14,0.02853761]
[1737992796073,0.03155589,235.18,235.14,0.02853761]
[1737992796274,4.2523,235.15,235.14,0.02853761]
[1737992796476,0.03155589,235.18,235.01,3.0432]
[1737992796768,21.32464631,235.2,234.98,3.48]
[1737992797168,21.32464631,235.15,234.92,3.2956]
[1737992797372,21.32464631,235.09,234.92,3.2956]
[1737992797570,3.2915,235.14,234.92,3.2956]
[1737992797772,0.03257442,235.03,234.98,0.03275924]
[1737992798370,4.2551,235.0,234.98,0.03275924]
[1737992799377,0.03257442,235.03,234.98,0.03275924]
[1737992800078,4.2551,235.0,234.98,0.03275924]
[1737992800380,0.03257442,235.03,234.85,21.32464631]
[1737992800573,4.2557,234.97,234.91,4.2567]
[1737992801479,0.0301462,234.96,234.91,4.2567]
[1737992802378,0.0301462,234.96,234.87,1.7494]
[1737992802578,0.0301462,234.96,234.86,2.995]
[1737992802878,4.2561,234.95,234.88,4.2572]
[1737992803079,0.0301462,234.96,234.86,1.5014]
[1737992803581,4.2860462,234.96,234.91,4.2566]
[1737992803780,0.0301462,234.96,234.86,1.5014]
[1737992804177,0.0301462,234.96,234.91,4.2565]
[1737992804376,0.0301462,234.96,234.86,1.5014]
[1737992804678,4.2860462,234.96,234.89,4.2569]